lending/lending_fUSD_20260211
["ID","MTS","AMOUNT","RATE_DAILY","PERIOD"]
[405099064,1770808241327,-181633.6377024,0.0001717,2]
[405099065,1770808241337,-250.0,0.00017176,2]
[405099066,1770808241347,-309.76552023,0.00017222,2]
[405099067,1770808241357,-166.66,0.0001725,2]
[405099068,1770808241366,-1000.0,0.0001726,2]
[405099069,1770808241376,-125666.1291462,0.00017286,2]
[405099070,1770808241386,-900.0,0.00017307,2]
[405099071,1770808241395,-3016.09,0.00017312,2]
[405099072,1770808241405,-1612.86039681,0.00017358,2]
[405099073,1770808241415,-9979.40514426,0.00017439,2]
[405099074,1770808241424,-7031.01133098,0.00017439,2]
[405099075,1770808241434,-2012.0,0.000175,2]
[405099076,1770808241443,-2780.93287472,0.00017513,2]
[405099077,1770808241453,-1000.0,0.00017534,2]
[405099078,1770808241463,-494.352,0.00017561,2]
[405099079,1770808241474,-168.0,0.00017585,2]
[405099080,1770808241483,-368.79128323,0.000176,2]
[405099081,1770808241493,-3510.8141643,0.0001764,2]
[405099082,1770808241503,-150.0,0.00017661,2]
[405099083,1770808241512,-150.0,0.00017661,2]
[405099084,1770808241522,-150.0,0.00017661,2]
[405099085,1770808241532,-150.0,0.00017661,2]
[405099086,1770808241545,-150.0,0.00017661,2]
[405099087,1770808241555,-150.0,0.00017661,2]
[405099088,1770808241565,-619.018,0.00017661,2]
[405099089,1770808241575,-1336.494,0.00017661,2]
[405099090,1770808241586,-3487.0,0.00017661,2]
[405099091,1770808241596,-1337.0,0.00017661,2]
[405099092,1770808241606,-150.887,0.00017661,2]
[405099093,1770808241617,-1273.0,0.00017661,2]
[405099094,1770808241627,-6590.0,0.00017661,2]
[405099095,1770808241636,-412.0,0.00017661,2]
[405099096,1770808241646,-2449.0,0.00017661,2]
[405099097,1770808241656,-400.0,0.000177,6]
[405099098,1770808241665,-298.26089446,0.00017703,2]
[405099099,1770808241679,-10159.1076,0.00017718,2]
[405099100,1770808241689,-9979.40514426,0.0001772,2]
[405099101,1770808241700,-7031.01133098,0.0001772,2]
[405099102,1770808241710,-500.0,0.00017726,2]
[405099103,1770808241720,-166.66,0.00017753,2]
[405099104,1770808241729,-1000.0,0.00017768,2]
[405099105,1770808241739,-400.0,0.000178,6]
[405099106,1770808241748,-5000.0,0.00017808,2]
[405099107,1770808241757,-500.0,0.00017808,2]
[405099108,1770808241767,-500.0,0.00017808,2]
[405099109,1770808241776,-500.0,0.00017808,2]
[405099110,1770808241785,-500.0,0.00017808,2]
[405099111,1770808241795,-500.0,0.00017808,2]
[405099112,1770808241804,-534.235559,0.00017808,2]
[405099113,1770808241815,-500.0,0.00017808,2]
[405099114,1770808241824,-500.0,0.00017808,2]
[405099115,1770808241834,-500.0,0.00017808,2]
[405099116,1770808241843,-500.0,0.00017808,2]
[405099117,1770808241853,-500.0,0.00017808,2]
[405099118,1770808241863,-500.0,0.00017808,2]
[405099119,1770808241874,-500.0,0.00017808,2]
[405099120,1770808241885,-500.0,0.00017808,2]
[405099121,1770808241894,-500.0,0.00017808,2]
[405099122,1770808241903,-396.54963767,0.00017808,2]
[405099123,1770808241913,-1000.0,0.00017808,2]
[405099124,1770808241922,-177.01848,0.00017818,2]
[405099125,1770808241931,-177.01848,0.00017818,2]
[405099126,1770808241941,-177.01848,0.00017818,2]
[405099127,1770808241951,-177.01848,0.00017818,2]
[405099128,1770808241961,-497.436968,0.00017818,2]
[405099129,1770808241971,-497.436968,0.00017818,2]
[405099130,1770808241981,-497.436968,0.00017818,2]
[405099131,1770808241990,-497.436968,0.00017818,2]
[405099132,1770808242001,-158461.97769249,0.00017818,2]
[405099133,1770808242619,-1084.9998637,0.00017818,2]
[405099134,1770808242631,-2315.09651318,0.00017818,2]
[405099138,1770808242844,-3437.5,0.00017818,2]
[405099139,1770808242869,-871.29316464,0.00017818,2]
[405099140,1770808242881,-1825.86696782,0.00017818,2]
[405099145,1770808243714,-3163.88365613,0.00017818,2]
[405099146,1770808243726,-7588.92766263,0.00017818,2]
[405099147,1770808243765,-709.17,0.00017818,2]
[405099151,1770808245862,-13259.25836996,0.00017818,2]
[405099152,1770808245918,-11173.21924678,0.00017818,2]
[405099153,1770808245929,-4296.75088854,0.00017818,2]
[405099154,1770808245941,-106263.27904021,0.00017818,2]
[405099155,1770808245951,-446.29967,0.0001782,2]
[405099156,1770808245960,-446.29967,0.0001782,2]
[405099157,1770808245971,-446.29967,0.0001782,2]
[405099158,1770808245980,-446.29968,0.0001782,2]
[405099159,1770808245991,-2388.75446213,0.0001783,2]
[405099160,1770808246001,-200.0,0.00017855,2]
[405099161,1770808246011,-200.0,0.00017856,2]
[405099162,1770808246022,-500.0,0.00017873,2]
[405099163,1770808246034,-500.0,0.00017873,2]
[405099164,1770808246044,-57.60588659,0.00017873,2]
[405099165,1770808246056,-442.39411341,0.00017873,2]
[405099166,1770808246066,-500.0,0.00017873,2]
[405099167,1770808246076,-500.0,0.00017873,2]
[405099168,1770808246086,-1612.14,0.00017898,2]
[405099169,1770808246094,-2968.17683374,0.000179,3]
[405099170,1770808246103,-5486.45157223,0.000179,3]
[405099171,1770808246114,-405.8537147,0.000179,3]
[405099172,1770808246125,-4853.20173677,0.000179,3]
[405099173,1770808246136,-1581.43,0.000179,3]
[405099174,1770808246156,-416.3699995,0.000179,3]
[405099176,1770808246167,-982.7230827,0.000179,3]
[405099178,1770808246178,-898.46824401,0.000179,3]
[405099179,1770808246240,-354.442864,0.000179,3]
[405099184,1770808535711,300.0,0.0003,120]
[405099185,1770808556902,300.0,0.00035,120]
[405099186,1770808577071,351.41986024,0.00035,120]
[405099187,1770808589172,300.0,0.000356,120]
[405099188,1770808714501,168.0,0.00035616,120]
[405099189,1770808759429,162.52,0.00012018,2]
[405099210,1770809310949,157.54,0.00010445,2]
[405099251,1770809432104,-3099.71,0.0001393,2]
[405099252,1770809432116,-200.0,0.000146,5]
[405099253,1770809432126,-458.992652,0.00014626,2]
[405099254,1770809432136,-400.0,0.000147,5]
[405099255,1770809432146,-150.0,0.00014729,2]
[405099256,1770809432158,-700.0,0.000148,5]
[405099257,1770809432173,-900.0,0.000149,5]
[405099258,1770809432182,-300.0,0.00015044,2]
[405099259,1770809432192,-300.0,0.00015044,2]
[405099260,1770809432211,-1738.0830467,0.00015045,2]
[405099261,1770809432221,-5665.98352732,0.00015045,2]
[405099262,1770809432231,-279.52579306,0.00015045,2]
[405099263,1770809432240,-577.67253323,0.00015045,2]
[405099264,1770809432250,-162.01657734,0.00015045,2]
[405099265,1770809432260,-694.18564844,0.00015045,2]
[405099266,1770809432270,-8808.58366482,0.00015045,2]
[405099267,1770809432279,-182.08070181,0.00015045,2]
[405099268,1770809432289,-1762.49,0.00015134,2]
[405099269,1770809432301,-1762.49,0.00015134,2]
[405099270,1770809432311,-1762.49,0.00015134,2]
[405099271,1770809432320,-1762.49,0.00015134,2]
[405099272,1770809432329,-1762.49,0.00015134,2]
[405099273,1770809432339,-209.13309471,0.00015134,2]
[405099274,1770809432348,-155.20645213,0.00015141,2]
[405099275,1770809432358,-1275.39079215,0.00015143,5]
[405099276,1770809432369,-1010.6773794,0.00015143,2]
[405099277,1770809432379,-500.0,0.00015143,2]
[405099278,1770809432388,-226.83199848,0.00015143,2]
[405099279,1770809432398,-333.95987798,0.00015143,2]
[405099280,1770809432407,-637326.96675703,0.00015144,2]
[405099281,1770809432420,-1254.41808677,0.00015144,2]
[405099286,1770809438320,-301.76454383,0.00015045,2]
[405099311,1770809440163,-432.25795424,0.00015045,2]
[405099312,1770809440217,-306.34194333,0.00015045,2]
[405099313,1770809440484,-303.6858893,0.00015045,2]
[405099314,1770809440507,-2861418.6151562,0.00015144,2]
[405099315,1770809440520,-1000.0,0.00015145,2]
[405099316,1770809440530,-416.91,0.00015244,2]
[405099317,1770809440543,-338.18558243,0.00015323,2]
[405099318,1770809440556,-5665.98352731,0.00015343,2]
[405099319,1770809440566,-8808.58366478,0.00015343,2]
[405099320,1770809440576,-1738.0830467,0.00015453,2]
[405099321,1770809440585,-416.91,0.00015518,2]
[405099322,1770809440594,-501.89548392,0.00015544,2]
[405099323,1770809440603,-494.352,0.00015544,2]
[405099324,1770809440613,-1344.05033067,0.00015616,2]
[405099325,1770809440622,-5665.98352731,0.0001564,2]
[405099326,1770809440632,-8808.58366478,0.0001564,2]
[405099327,1770809440642,-279.52579302,0.00015759,2]
[405099328,1770809440651,-416.91,0.00015792,2]
[405099329,1770809440661,-155.67,0.00015806,2]
[405099330,1770809440670,-210.35,0.00015806,2]
[405099331,1770809440680,-1738.0830467,0.00015861,2]
[405099332,1770809440690,-392.0,0.0001587,2]
[405099333,1770809440700,-5665.98352731,0.00015938,2]
[405099334,1770809440709,-8808.58366478,0.00015938,2]
[405099335,1770809440718,-257.447609,0.00016,2]
[405099336,1770809440728,-416.91,0.00016066,2]
[405099337,1770809440738,-266.0,0.00016172,2]
[405099338,1770809440749,-405.0,0.00016179,2]
[405099339,1770809440758,-1344.05033067,0.00016187,2]
[405099340,1770809440769,-104895.84518881,0.000162,5]
[405099341,1770809440779,-5665.98352731,0.00016235,2]
[405099342,1770809440788,-8808.58366478,0.00016235,2]
[405099343,1770809440798,-200.0,0.00016264,2]
[405099344,1770809440808,-1738.0830467,0.00016269,2]
[405099345,1770809440817,-297.78,0.00016335,2]
[405099346,1770809440827,-416.91167531,0.0001634,2]
[405099347,1770809440836,-99916.6753,0.00016452,2]
[405099348,1770809440847,-279.52579302,0.00016473,2]
[405099349,1770809440861,-694.18564844,0.00016473,2]
[405099350,1770809440870,-5665.98352731,0.00016533,2]
[405099351,1770809440881,-133602.88,0.00016551,2]
[405099352,1770809440891,-3240.0,0.00016582,2]
[405099353,1770809440902,-3016.09,0.00016637,2]
[405099354,1770809440911,-1391.9,0.00016663,2]
[405099355,1770809440922,-1738.0830467,0.00016676,2]
[405099356,1770809440932,-277.35679052,0.00016722,2]
[405099357,1770809440942,-1344.05033067,0.00016758,2]
[405099358,1770809440951,-258.4684463,0.00016817,2]
[405099359,1770809440960,-5665.98352731,0.0001683,2]
[405099360,1770809440969,-286822.84613694,0.00017,2]
[405099361,1770809440980,-151.0,0.00017,2]
[405099362,1770809440990,-151.0,0.00017,2]
[405099363,1770809440999,-497.436968,0.00017,2]
[405099364,1770809441008,-497.436968,0.00017,2]
[405099365,1770809441017,-497.436968,0.00017,2]
[405099366,1770809441027,-497.436968,0.00017,2]
[405099367,1770809441036,-1738.0830467,0.00017084,2]
[405099368,1770809441045,-504.0,0.00017119,2]
[405099369,1770809441055,-295.0,0.00017123,2]
[405099370,1770809441066,-5665.98352731,0.00017128,2]
[405099371,1770809441078,-11267.0,0.00017181,2]
[405099372,1770809441088,-326.0,0.00017246,2]
[405099373,1770809441101,-1000.0,0.0001726,2]
[405099374,1770809441117,-159.99,0.0001726,2]
[405099375,1770809441127,-206.85979037,0.00017265,2]
[405099376,1770809441137,-150.0,0.00017265,2]
[405099377,1770809441147,-245.85501438,0.00017265,2]
[405099378,1770809441157,-287.61899177,0.0001727,2]
[405099379,1770809441167,-272.0,0.00017279,2]
[405099380,1770809441176,-150.0,0.0001732,2]
[405099381,1770809441185,-1344.05033067,0.00017329,2]
[405099382,1770809441195,-695.23321868,0.0001734,2]
[405099383,1770809441204,-2500.0,0.0001734,2]
[405099384,1770809441214,-150.0,0.00017375,2]
[405099385,1770809441223,-177.0,0.00017413,2]
[405099386,1770809441232,-695.23321868,0.0001742,2]
[405099387,1770809441242,-5665.98352731,0.00017425,2]
[405099388,1770809441252,-150.0,0.00017429,2]
[405099389,1770809441261,-500.0,0.0001743,2]
[405099390,1770809441271,-500.0,0.0001743,2]
[405099391,1770809441280,-500.0,0.0001743,2]
[405099392,1770809441290,-500.0,0.0001743,2]
[405099393,1770809441299,-500.0,0.0001743,2]
[405099394,1770809441308,-250.0,0.0001743,2]
[405099395,1770809441318,-250.0,0.0001743,2]
[405099396,1770809441328,-500.0,0.0001743,2]
[405099397,1770809441337,-250.0,0.0001743,2]
[405099398,1770809441347,-250.0,0.0001743,2]
[405099399,1770809441357,-448.42107791,0.0001743,2]
[405099400,1770809441366,-260.23349697,0.0001743,2]
[405099401,1770809441375,-250.0,0.0001743,2]
[405099402,1770809441384,-250.0,0.0001743,2]
[405099403,1770809441395,-250.0,0.0001743,2]
[405099404,1770809441405,-250.0,0.0001743,2]
[405099405,1770809441415,-250.0,0.0001743,2]
[405099406,1770809441425,-262.73598838,0.0001743,2]
[405099407,1770809441434,-150.82598324,0.00017484,2]
[405099408,1770809441445,-1738.0830467,0.00017492,2]
[405099409,1770809441455,-1391.9,0.00017496,2]
[405099410,1770809441466,-695.23321868,0.000175,2]
[405099411,1770809441476,-1000.0,0.00017534,2]
[405099412,1770809441486,-1000.0,0.00017539,2]
[405099413,1770809441495,-500.0,0.00017539,2]
[405099414,1770809441505,-500.0,0.00017539,2]
[405099415,1770809441514,-500.0,0.00017539,2]
[405099416,1770809441524,-500.0,0.00017539,2]
[405099417,1770809441533,-500.0,0.00017539,2]
[405099418,1770809441543,-500.0,0.00017539,2]
[405099419,1770809441552,-500.0,0.00017539,2]
[405099420,1770809441561,-500.0,0.00017539,2]
[405099421,1770809441571,-500.0,0.00017539,2]
[405099422,1770809441579,-500.0,0.00017539,2]
[405099423,1770809441588,-500.0,0.00017539,2]
[405099424,1770809441597,-695.23321868,0.0001758,2]
[405099425,1770809441606,-155.34959577,0.00017584,2]
[405099426,1770809441615,-368.79128323,0.000176,2]
[405099427,1770809441624,-1100.0,0.000176,6]
[405099428,1770809441635,-3510.8141643,0.0001764,2]
[405099429,1770809441644,-695.23321868,0.0001766,2]
[405099430,1770809441654,-392.0,0.00017677,2]
[405099431,1770809441664,-150.887,0.00017681,2]
[405099432,1770809441683,-1273.0,0.00017681,2]
[405099433,1770809441693,-918.0,0.00017681,2]
[405099434,1770809441702,-1212.019,0.00017681,2]
[405099435,1770809441711,-2449.0,0.00017681,2]
[405099436,1770809441720,-5966.0,0.00017681,2]
[405099437,1770809441730,-3487.0,0.00017681,2]
[405099438,1770809441739,-200.0,0.000177,6]
[405099439,1770809441748,-5665.98352731,0.00017723,2]
[405099440,1770809441758,-695.23321868,0.0001774,2]
[405099441,1770809441767,-405.0,0.00017765,2]
[405099442,1770809441776,-2012.0,0.000178,2]
[405099444,1770809441785,-200.0,0.000178,6]
[405099446,1770809441795,-5000.0,0.00017808,2]
[405099448,1770809441804,-500.0,0.00017808,2]
[405099450,1770809441812,-500.0,0.00017808,2]
[405099452,1770809441822,-500.0,0.00017808,2]
[405099454,1770809441832,-500.0,0.00017808,2]
[405099455,1770809441842,-500.0,0.00017808,2]
[405099457,1770809441853,-500.0,0.00017808,2]
[405099459,1770809441865,-500.0,0.00017808,2]
[405099461,1770809441874,-500.0,0.00017808,2]
[405099463,1770809441884,-500.0,0.00017808,2]
[405099465,1770809441895,-500.0,0.00017808,2]
[405099468,1770809441904,-500.0,0.00017808,2]
[405099470,1770809441915,-500.0,0.00017808,2]
[405099472,1770809441924,-500.0,0.00017808,2]
[405099473,1770809441935,-500.0,0.00017808,2]
[405099475,1770809441944,-334.235559,0.00017808,2]
[405099477,1770809441953,-1000.0,0.00017808,2]
[405099479,1770809441962,-298.26089446,0.00017818,2]
[405099481,1770809441972,-695.23321868,0.0001782,2]
[405099483,1770809441981,-178.51986,0.0001782,2]
[405099485,1770809441990,-178.51987,0.0001782,2]
[405099487,1770809442000,-239295.2152503,0.00017823,2]
[405099489,1770809442009,-98722.9384056,0.00017823,2]
[405099491,1770809442018,-396339.80503416,0.00017823,2]
[405099494,1770809442031,-320.21589543,0.00017823,2]
[405099496,1770809442044,-347.053942,0.00017823,2]
[405099510,1770809443848,-846.73687322,0.00016533,2]
[405099511,1770809443908,-7961.84679156,0.00016533,2]
[405099512,1770809443919,-471.00723855,0.00017119,2]
[405099513,1770809443932,-28.99276145,0.00017119,2]
[405099514,1770809443941,-1879.96081032,0.00017823,2]
[405099515,1770809443965,-5610.70519285,0.00017823,2]
[405099516,1770809443976,-531.56107184,0.00017823,2]
[405099517,1770809443985,-839.8703759,0.00017823,2]
[405099520,1770809446418,-8808.58366478,0.0001683,2]
[405099521,1770809446428,-171.88660489,0.00017393,2]
[405099522,1770809446438,-81286.63714078,0.00017823,2]
[405099523,1770809446474,-12703.48655946,0.00017823,2]
[405099524,1770809446490,-416.2050005,0.00017823,2]
[405099525,1770809446502,-973.14999999,0.00017823,2]
[405099526,1770809446524,-7750.0,0.00017823,2]
[405099540,1770809473282,500.0,0.00012018,2]
[405099551,1770809586212,200.0,0.00012018,2]
[405099554,1770810305463,167.59,0.00035616,120]
[405099555,1770810407189,500.0,0.00012018,2]
[405099557,1770810433053,500.0,0.00012018,2]
[405099576,1770810452834,300.0,0.00012018,2]
[405099753,1770810632182,-166.66,0.00013695,2]
[405099754,1770810632193,-246.743511,0.00013911,2]
[405099755,1770810632236,-1910.86122094,0.00013911,2]
[405099756,1770810632249,-166.66,0.00013983,2]
[405099757,1770810632259,-166.66,0.00014272,2]
[405099758,1770810632268,-200.0,0.00014393,2]
[405099759,1770810632279,-1844.16,0.00014416,2]
[405099760,1770810632288,-494.352,0.00014548,2]
[405099761,1770810632299,-166.66,0.0001456,2]
[405099762,1770810632310,-300.0,0.00014599,2]
[405099763,1770810632320,-1200.0,0.00014599,2]
[405099764,1770810632329,-7745.83390979,0.000146,2]
[405099765,1770810632345,-510.78051524,0.000146,2]
[405099766,1770810632360,-168.18036068,0.000146,2]
[405099767,1770810632369,-202.97555083,0.000146,2]
[405099768,1770810632379,-554.89935924,0.000146,2]
[405099769,1770810632403,-3197.1583477,0.000146,2]
[405099770,1770810632414,-2152.66125016,0.000146,2]
[405099771,1770810632426,-2222.13091084,0.000146,2]
[405099772,1770810632442,-312.74966384,0.000146,2]
[405099773,1770810632451,-1453.52097657,0.000146,2]
[405099775,1770810632461,-258.94253394,0.000146,2]
[405099777,1770810632471,-2529.52529221,0.000146,2]
[405099780,1770810632483,-2701.61761818,0.000146,2]
[405099781,1770810632495,-442.84630949,0.000146,2]
[405099782,1770810632505,-817.5410858,0.000146,2]
[405099784,1770810632515,-500.0,0.000146,5]
[405099786,1770810632524,-1000.0,0.00014644,2]
[405099788,1770810632534,-257.99718548,0.00014644,2]
[405099790,1770810632543,-178.81457668,0.00014644,2]
[405099792,1770810632552,-500.0,0.00014644,2]
[405099794,1770810632561,-448.54034157,0.00014644,2]
[405099796,1770810632572,-358.32105063,0.00014644,2]
[405099797,1770810632582,-500.0,0.00014644,2]
[405099798,1770810632592,-500.0,0.00014644,2]
[405099799,1770810632603,-500.0,0.00014644,2]
[405099800,1770810632616,-500.0,0.00014644,2]
[405099801,1770810632625,-500.0,0.00014644,2]
[405099802,1770810632634,-561.59970874,0.00014644,2]
[405099803,1770810632644,-500.0,0.00014644,2]
[405099804,1770810632654,-500.0,0.00014644,2]
[405099805,1770810632663,-500.0,0.00014644,2]
[405099806,1770810632673,-500.0,0.00014644,2]
[405099807,1770810632683,-150.0,0.00014644,2]
[405099808,1770810632692,-84091.27636923,0.00014645,2]
[405099809,1770810632704,-229658.52487096,0.00014645,2]
[405099810,1770810632715,-184373.68429859,0.00014645,2]
[405099811,1770810632727,-167049.4936095,0.00014645,2]
[405099836,1770810640340,-616.0,0.00014645,2]
[405099837,1770810640664,-2834211.02085172,0.00014645,2]
[405099838,1770810640674,-1100.0,0.000147,5]
[405099839,1770810640685,-2500.0,0.00014744,2]
[405099840,1770810640695,-1682.1727,0.00014745,2]
[405099841,1770810640708,-72403.8968,0.00014745,2]
[405099842,1770810640718,-11643.0,0.000148,2]
[405099843,1770810640729,-1700.0,0.000148,5]
[405099844,1770810640739,-500.0,0.00014843,2]
[405099845,1770810640748,-500.0,0.00014843,2]
[405099846,1770810640757,-578.39927052,0.00014843,2]
[405099847,1770810640767,-518.70244682,0.00014844,2]
[405099849,1770810640776,-520.25784948,0.00014844,2]
[405099850,1770810640785,-500.0,0.00014844,2]
[405099851,1770810640795,-500.0,0.00014844,2]
[405099852,1770810640804,-500.0,0.00014844,2]
[405099853,1770810640814,-500.0,0.00014844,2]
[405099854,1770810640823,-500.0,0.00014844,2]
[405099855,1770810640832,-500.0,0.00014844,2]
[405099856,1770810640841,-500.0,0.00014844,2]
[405099857,1770810640851,-500.0,0.00014844,2]
[405099858,1770810640861,-500.0,0.00014844,2]
[405099859,1770810640870,-500.0,0.00014844,2]
[405099860,1770810640879,-500.0,0.00014844,2]
[405099861,1770810640889,-500.0,0.00014844,2]
[405099862,1770810640899,-33323.5159,0.00014845,2]
[405099863,1770810640909,-166.66,0.00014848,2]
[405099864,1770810640919,-400.0,0.00014876,6]
[405099865,1770810640929,-1000.0,0.00014877,2]
[405099866,1770810640938,-2300.0,0.000149,5]
[405099867,1770810640948,-2419.46621871,0.0001492,2]
[405099868,1770810640958,-200.0,0.00014933,2]
[405099869,1770810640967,-1165.39284973,0.00014944,2]
[405099870,1770810640977,-8424.79478568,0.00014967,2]
[405099871,1770810640987,-8439.59953174,0.00014967,2]
[405099872,1770810640996,-1000.0,0.00015044,2]
[405099873,1770810641005,-99916.6753,0.00015044,2]
[405099874,1770810641015,-166.66,0.00015137,2]
[405099875,1770810641024,-803.1,0.00015143,2]
[405099876,1770810641034,-8424.79478568,0.00015333,2]
[405099877,1770810641043,-8439.59953174,0.00015333,2]
[405099878,1770810641054,-803.1,0.00015417,2]
[405099879,1770810641063,-258.94253393,0.00015425,2]
[405099880,1770810641073,-803.1,0.00015691,2]
[405099881,1770810641086,-8424.79478568,0.000157,2]
[405099882,1770810641097,-8439.59953174,0.000157,2]
[405099883,1770810641107,-255.0,0.00015772,2]
[405099884,1770810641124,-900.0,0.00015786,2]
[405099885,1770810641142,-206.85979037,0.00015799,2]
[405099886,1770810641158,-150.0,0.00015799,2]
[405099887,1770810641169,-150.0,0.00015854,2]
[405099888,1770810641185,-2800.0,0.000159,5]
[405099889,1770810641199,-150.60409536,0.000159,2]
[405099890,1770810641213,-150.0,0.00015909,2]
[405099891,1770810641229,-424.0,0.00015928,2]
[405099892,1770810641246,-2681.32770549,0.00015928,2]
[405099893,1770810641259,-150.0,0.00015963,2]
[405099894,1770810641272,-803.1,0.00015965,2]
[405099895,1770810641287,-20000.0,0.00016,2]
[405099896,1770810641300,-257.447609,0.00016,2]
[405099897,1770810641314,-150.82598324,0.00016018,2]
[405099898,1770810641329,-8424.79478568,0.00016067,2]
[405099899,1770810641343,-8439.59953174,0.00016067,2]
[405099900,1770810641359,-300.0,0.00016073,2]
[405099901,1770810641374,-159.22,0.00016108,2]
[405099902,1770810641387,-198.12,0.00016146,2]
[405099903,1770810641401,-803.1,0.00016239,2]
[405099904,1770810641416,-258.94253393,0.0001625,2]
[405099905,1770810641432,-210.35,0.00016391,2]
[405099906,1770810641455,-8424.79478568,0.00016433,2]
[405099907,1770810641470,-8439.59953174,0.00016433,2]
[405099908,1770810641484,-803.12167531,0.00016513,2]
[405099909,1770810641495,-254.0,0.00016559,2]
[405099910,1770810641506,-841.0,0.0001672,2]
[405099911,1770810641523,-1000.0,0.00016736,2]
[405099912,1770810641537,-8424.79478568,0.000168,2]
[405099913,1770810641548,-8439.59953174,0.000168,2]
[405099914,1770810641561,-2343.97,0.00016801,2]
[405099915,1770810641576,-19999.99,0.00016922,2]
[405099916,1770810641592,-2943.18919226,0.00016937,2]
[405099917,1770810641603,-1000.0,0.00016986,2]
[405099918,1770810641613,-161.0,0.00016987,2]
[405099919,1770810641625,-500.0,0.00017026,2]
[405099920,1770810641648,-500.0,0.00017026,2]
[405099921,1770810641662,-500.0,0.00017026,2]
[405099922,1770810641676,-500.0,0.00017026,2]
[405099923,1770810641688,-500.0,0.00017026,2]
[405099924,1770810641702,-500.0,0.00017026,2]
[405099925,1770810641716,-448.42107791,0.00017026,2]
[405099926,1770810641728,-250.0,0.00017026,2]
[405099927,1770810641741,-250.0,0.00017026,2]
[405099928,1770810641754,-250.0,0.00017026,2]
[405099929,1770810641767,-250.0,0.00017026,2]
[405099930,1770810641779,-250.0,0.00017026,2]
[405099931,1770810641792,-250.0,0.00017026,2]
[405099932,1770810641807,-260.23349697,0.00017026,2]
[405099933,1770810641820,-250.0,0.00017026,2]
[405099934,1770810641832,-250.0,0.00017026,2]
[405099935,1770810641844,-250.0,0.00017026,2]
[405099936,1770810641857,-262.73598838,0.00017026,2]
[405099937,1770810641868,-277.35679052,0.00017026,2]
[405099938,1770810641881,-258.94253393,0.00017075,2]
[405099939,1770810641894,-900.0,0.00017156,2]
[405099940,1770810641906,-8424.79478568,0.00017167,2]
[405099941,1770810641921,-8439.59953174,0.00017167,2]
[405099942,1770810641934,-247.71,0.00017179,2]
[405099943,1770810641947,-169.0,0.0001719,2]
[405099944,1770810641960,-576.97542512,0.00017206,2]
[405099945,1770810641972,-1453.52097657,0.0001724,2]
[405099946,1770810641984,-1000.0,0.0001726,2]
[405099947,1770810641997,-350.0,0.0001738,2]
[405099948,1770810642009,-350.0,0.00017391,2]
[405099949,1770810642022,-365.5428747,0.00017442,2]
[405099950,1770810642034,-328.60679571,0.000175,5]
[405099951,1770810642047,-8424.79478568,0.00017533,2]
[405099952,1770810642059,-8439.59953174,0.00017533,2]
[405099953,1770810642072,-1000.0,0.00017534,2]
[405099954,1770810642084,-501.89548392,0.00017539,2]
[405099955,1770810642096,-287.61899177,0.00017574,2]
[405099956,1770810642109,-155.34959577,0.00017584,2]
[405099957,1770810642122,-368.79128323,0.000176,2]
[405099958,1770810642134,-3510.8141643,0.0001764,2]
[405099959,1770810642152,-618.018,0.00017663,2]
[405099960,1770810642167,-1337.0,0.00017663,2]
[405099961,1770810642180,-1336.494,0.00017663,2]
[405099962,1770810642193,-3487.0,0.00017663,2]
[405099963,1770810642207,-918.0,0.00017663,2]
[405099964,1770810642220,-1212.019,0.00017663,2]
[405099965,1770810642234,-150.887,0.00017663,2]